bitfinex-derivatives/quotes_BTCF0:USTF0_20241015
["timestamp","ask_amount","ask_price","bid_price","bid_amount"]
[1729000344025,0.12969928,67194.0,67186.0,0.074431]
[1729000344320,0.05527728,67194.0,67186.0,0.074831]
[1729000344917,0.44652,67187.0,67186.0,0.0004]
[1729000345123,0.0004,67187.0,67184.0,0.30907846]
[1729000345628,0.05527728,67194.0,67185.0,0.66938427]
[1729000345821,0.05527728,67194.0,67193.0,0.435623]
[1729000346221,0.4,67213.0,67193.0,0.435623]
[1729000346222,0.4,67213.0,67193.0,0.80693782]
[1729000346428,0.074401,67213.0,67212.0,0.0004]
[1729000346627,1.44676,67213.0,67193.0,0.58406427]
[1729000346827,0.074404,67210.0,67206.0,0.074408]
[1729000347034,0.074405,67210.0,67205.0,0.074409]
[1729000347334,0.0004,67213.0,67201.0,0.3608]
[1729000347335,0.0004,67206.0,67201.0,0.3608]
[1729000347524,0.074412,67203.0,67198.0,0.074417]
[1729000347719,0.0004,67199.0,67194.0,0.074422]
[1729000347926,0.0004,67195.0,67193.0,0.3622]
[1729000348430,0.074822,67194.0,67193.0,0.0014]
[1729000348823,1.04688,67194.0,67173.0,0.3608]
[1729000349029,0.3608,67187.0,67173.0,0.3608]
[1729000349223,0.435231,67187.0,67173.0,0.3608]
[1729000349436,0.3608,67187.0,67182.0,0.074434]
[1729000349733,0.074438,67180.0,67177.0,0.074441]
[1729000350030,0.074438,67180.0,67172.0,0.02656865]
[1729000350031,0.074442,67176.0,67172.0,0.02656865]
[1729000350232,0.074842,67176.0,67161.0,0.0004]
[1729000350535,0.074842,67176.0,67167.0,0.02694655]
[1729000350740,1.121442,67176.0,67161.0,0.0004]
[1729000351128,0.447,67176.0,67161.0,0.0004]
[1729000351327,0.075242,67176.0,67175.0,0.014]
[1729000351530,0.675242,67176.0,67175.0,0.014]
[1729000351834,0.074458,67162.0,67161.0,0.0004]
[1729000352035,0.4,67165.0,67161.0,0.0004]
[1729000352229,0.0004,67162.0,67161.0,0.0004]
[1729000352830,0.074858,67162.0,67161.0,0.0004]
[1729000353237,1.482338,67162.0,67161.0,0.0004]
[1729000353442,1.40828,67162.0,67145.0,0.3609203]
[1729000353625,0.07447,67152.0,67148.0,0.074472]
[1729000353935,0.074475,67146.0,67145.0,0.3609203]
[1729000354147,0.074875,67146.0,67145.0,0.0001203]
[1729000355032,0.074875,67146.0,67137.0,0.074485]
[1729000355033,0.074482,67140.0,67130.0,0.3608]
[1729000355343,0.074482,67140.0,67126.0,0.02639548]
[1729000355344,0.4004,67140.0,67123.0,0.3608]
[1729000355532,0.0004,67124.0,67119.0,0.0004]
[1729000355733,0.0004,67124.0,67123.0,0.074501]
[1729000356245,0.3612,67124.0,67120.0,0.074504]
[1729000356535,0.074903,67121.0,67119.0,0.0004]
[1729000356743,0.0004,67120.0,67119.0,0.0004]
[1729000356941,0.0004,67120.0,67119.0,0.074905]
[1729000357330,0.4004,67120.0,67119.0,0.0004]
[1729000357532,0.4004,67120.0,67112.0,0.38786046]
[1729000357735,0.4008,67120.0,67112.0,0.3608]
[1729000358035,0.074514,67111.0,67105.0,0.36248]
[1729000358242,0.074914,67111.0,67105.0,0.3608]
[1729000358534,0.074914,67111.0,67097.0,0.02680305]
[1729000358736,0.3612,67111.0,67097.0,0.02680305]
[1729000358929,0.0018,67120.0,67119.0,0.074505]
[1729000359132,0.0018,67120.0,67119.0,0.835705]
[1729000359339,0.0018,67120.0,67119.0,1.882665]
[1729000359840,0.0004,67124.0,67123.0,0.074501]
[1729000360029,0.0004,67124.0,67123.0,0.074901]
[1729000360236,0.0004,67124.0,67123.0,0.0004]
[1729000360437,0.0004,67124.0,67123.0,0.074901]
[1729000360837,0.0004,67124.0,67123.0,0.0004]
[1729000361136,0.0004,67146.0,67123.0,1.27504405]
[1729000361341,0.0004,67146.0,67139.0,0.074883]
[1729000361529,0.0004,67146.0,67145.0,0.074476]
[1729000361733,0.0004,67146.0,67145.0,0.435676]
[1729000362338,0.0004,67146.0,67145.0,0.882476]
[1729000362541,0.0004,67146.0,67145.0,0.435676]
[1729000362839,0.0004,67146.0,67145.0,0.3612]
[1729000363445,0.0004,67146.0,67145.0,0.0004]
[1729000363740,0.0004,67146.0,67139.0,0.0004]
[1729000363741,0.074482,67140.0,67139.0,0.0004]
[1729000364042,0.474882,67140.0,67139.0,0.0004]
[1729000364245,0.074484,67139.0,67132.0,0.3572]
[1729000364544,0.4004,67133.0,67132.0,0.3572]
[1729000364740,0.47489,67133.0,67123.0,0.0004]
[1729000365042,0.0004,67124.0,67123.0,0.0004]
[1729000366443,0.0004,67124.0,67123.0,0.074901]
[1729000367441,0.0014,67124.0,67123.0,0.078901]
[1729000368355,0.0014,67124.0,67123.0,0.089901]
[1729000369352,0.0004,67133.0,67132.0,0.074491]
[1729000369550,0.0004,67133.0,67132.0,1.196491]
[1729000369852,0.0004,67133.0,67132.0,0.796491]
[1729000370647,0.0014,67133.0,67132.0,1.404491]
[1729000370843,0.0008,67140.0,67132.0,2.40117271]
[1729000371154,0.0008,67146.0,67145.0,0.074476]
[1729000371353,0.0008,67146.0,67145.0,0.435676]
[1729000372553,0.3608,67159.0,67145.0,0.435676]
[1729000372554,0.0004,67178.0,67161.0,0.074459]
[1729000372852,0.3608,67185.0,67161.0,0.435658]
[1729000373051,0.074437,67181.0,67173.0,0.3608]
[1729000373555,0.4,67183.0,67173.0,0.3608]
[1729000373755,0.474434,67183.0,67182.0,0.0004]
[1729000373943,0.07444,67179.0,67173.0,0.3608]
[1729000374144,0.0004,67174.0,67173.0,0.3608]
[1729000374344,0.074446,67173.0,67167.0,0.3608]
[1729000374546,0.0004,67168.0,67167.0,0.3608]
[1729000375153,0.0004,67168.0,67167.0,0.435252]
[1729000375455,0.0004,67168.0,67167.0,0.3608]
[1729000375851,0.0004,67168.0,67167.0,0.435252]
[1729000376157,0.0004,67168.0,67162.0,0.02682945]
[1729000376357,0.0004,67168.0,67164.0,0.074455]
[1729000376553,0.0004,67168.0,67161.0,0.3612]
[1729000376748,0.0004,67168.0,67165.0,0.074453]
[1729000377056,0.0014,67168.0,67167.0,0.008]
[1729000377454,0.0014,67168.0,67167.0,0.082452]
[1729000377656,0.0004,67168.0,67167.0,0.435252]
[1729000377955,0.0014,67168.0,67167.0,0.435252]
[1729000378357,0.0014,67168.0,67167.0,0.3668]
[1729000378551,0.0014,67168.0,67167.0,0.441252]
[1729000378747,0.0004,67174.0,67167.0,1.802052]
[1729000378948,0.0004,67174.0,67173.0,0.474845]
[1729000379152,0.0004,67174.0,67173.0,0.835645]
[1729000379552,0.0004,67174.0,67173.0,0.435645]
[1729000380447,0.0004,67174.0,67173.0,0.3612]
[1729000380853,0.0004,67174.0,67173.0,0.0074]
[1729000381046,0.0004,67174.0,67173.0,0.7682]
[1729000381251,0.0004,67174.0,67173.0,0.86938513]
[1729000381649,0.0004,67174.0,67173.0,0.46938513]
[1729000382260,0.0004,67174.0,67173.0,0.39494013]
[1729000383058,0.0004,67174.0,67173.0,0.0074]
[1729000383450,0.3612,67183.0,67173.0,0.3682]
[1729000383661,1.80776,67183.0,67173.0,0.0074]
[1729000383964,0.7616,67183.0,67173.0,0.0074]
[1729000384152,0.074438,67180.0,67173.0,0.0074]
[1729000384354,0.36244,67183.0,67173.0,0.0074]
[1729000384553,0.0008,67183.0,67182.0,0.435635]
[1729000386359,0.0008,67183.0,67182.0,0.3612]
[1729000386661,0.0018,67183.0,67182.0,0.444635]
[1729000386863,0.0018,67183.0,67182.0,0.3572]
[1729000387069,0.0018,67183.0,67182.0,0.431635]
[1729000387957,0.0008,67194.0,67193.0,0.074423]
[1729000388163,0.0008,67194.0,67193.0,1.196423]
[1729000389166,0.0004,67202.0,67198.0,0.074418]
[1729000389368,0.0004,67202.0,67198.0,0.074818]
[1729000390069,0.0004,67202.0,67198.0,0.1014882]
[1729000390465,0.0004,67202.0,67198.0,0.0004]
[1729000390665,0.0004,67202.0,67198.0,0.076818]
[1729000390966,0.0034,67199.0,67198.0,0.0024]
[1729000391467,0.0034,67199.0,67198.0,0.076818]
[1729000392256,0.0034,67199.0,67198.0,0.0024]
[1729000392465,0.0034,67199.0,67193.0,0.72372]
[1729000392664,0.0004,67194.0,67185.0,0.074432]
[1729000392863,0.0004,67186.0,67185.0,0.074432]
[1729000393268,0.0004,67186.0,67185.0,0.46168173]
[1729000393462,0.0004,67186.0,67185.0,1.06168173]
[1729000393660,0.0008,67194.0,67193.0,0.074423]
[1729000393861,0.0008,67194.0,67193.0,0.074823]
[1729000394064,0.3616,67194.0,67193.0,0.074823]
[1729000394766,0.0008,67194.0,67193.0,0.074823]
[1729000395158,0.0008,67194.0,67193.0,0.435623]
[1729000395359,0.0008,67194.0,67193.0,0.074823]
[1729000395767,0.0008,67194.0,67193.0,0.10194821]
[1729000396164,0.3616,67194.0,67193.0,0.11394821]
[1729000396968,0.3616,67194.0,67193.0,0.12194821]
[1729000397563,0.3616,67194.0,67193.0,0.11594821]
[1729000397866,0.3616,67194.0,67193.0,0.12994821]
[1729000398357,0.0008,67194.0,67193.0,0.38994821]
[1729000398562,0.0008,67194.0,67193.0,0.12994821]
[1729000398963,0.0008,67194.0,67193.0,0.11594821]
[1729000399160,0.0008,67194.0,67193.0,0.12994821]
[1729000400266,0.0008,67194.0,67193.0,0.11594821]
[1729000400572,0.0008,67194.0,67193.0,0.12994821]
[1729000407977,0.074814,67202.0,67193.0,0.12994821]
[1729000407978,0.0004,67202.0,67198.0,0.074418]
[1729000408172,0.36303299,67214.0,67212.0,0.074402]
[1729000408378,0.36303299,67214.0,67212.0,0.074802]
[1729000408688,0.62156,67220.0,67212.0,0.074802]
[1729000408873,0.62156,67220.0,67212.0,0.6004]
[1729000408874,0.32797646,67220.0,67212.0,0.6004]
[1729000409178,0.074368,67243.0,67239.0,0.074372]
[1729000409179,0.26,67242.0,67239.0,0.074372]
[1729000409377,0.26,67242.0,67227.0,0.074386]
[1729000409378,0.074364,67247.0,67241.0,0.5204]
[1729000409600,0.074355,67255.0,67246.0,0.3612]
[1729000409775,0.074355,67255.0,67254.0,0.6208]
[1729000409983,0.074345,67265.0,67254.0,0.6212]
[1729000410280,0.074344,67265.0,67264.0,0.2604]
[1729000410474,0.074344,67265.0,67264.0,0.0004]
[1729000410978,0.674344,67265.0,67264.0,0.0004]
[1729000411177,0.2333,67281.0,67264.0,0.2604]
[1729000411375,0.2333,67281.0,67264.0,0.0004]
[1729000411376,0.074344,67265.0,67264.0,0.0004]
[1729000411878,1.120344,67265.0,67264.0,0.0004]
[1729000412077,1.123344,67265.0,67264.0,0.0014]
[1729000412381,0.446,67264.0,67254.0,0.0004]
[1729000412584,0.3608,67258.0,67255.0,0.074355]
[1729000412887,0.3608,67258.0,67257.0,0.074352]
[1729000413082,0.26,67262.0,67254.0,0.0004]
[1729000413384,0.0034,67265.0,67264.0,0.074345]
[1729000413681,0.0034,67265.0,67264.0,0.074745]
[1729000413882,0.0004,67265.0,67264.0,0.074745]
[1729000414683,0.6004,67265.0,67264.0,0.0014]
[1729000414884,0.9612,67265.0,67264.0,0.0014]
[1729000415085,0.446,67264.0,67254.0,0.0014]
[1729000415270,0.9612,67265.0,67254.0,0.0014]
[1729000415271,0.26,67255.0,67254.0,0.074755]
[1729000415476,0.2604,67255.0,67254.0,0.074756]
[1729000416077,0.0004,67255.0,67254.0,0.074756]
[1729000416278,0.2604,67255.0,67246.0,0.0004]
[1729000416586,0.074363,67247.0,67246.0,0.0004]
[1729000416779,0.074763,67247.0,67246.0,0.0004]
[1729000416975,0.0004,67247.0,67246.0,0.0004]
[1729000417186,0.0004,67247.0,67246.0,0.074765]
[1729000417382,0.074763,67247.0,67246.0,0.0004]
[1729000417688,0.0004,67247.0,67246.0,0.0004]
[1729000417981,0.0014,67247.0,67246.0,0.435565]
[1729000418177,0.0014,67247.0,67246.0,1.481685]
[1729000418380,0.0014,67247.0,67246.0,1.486685]
[1729000418887,0.0008,67255.0,67254.0,0.074356]
[1729000419189,0.0004,67262.0,67254.0,0.435556]
[1729000419377,0.0004,67262.0,67261.0,0.435148]
[1729000419572,0.0004,67262.0,67261.0,0.435548]
[1729000420085,0.0004,67262.0,67261.0,1.481588]
[1729000420382,0.0004,67262.0,67261.0,0.3612]
[1729000420586,0.074747,67262.0,67261.0,0.0004]
[1729000420775,0.6004,67262.0,67261.0,0.0004]
[1729000420975,0.334355,67255.0,67254.0,0.0014]
[1729000421176,0.0004,67255.0,67254.0,0.0014]
[1729000421377,0.0004,67255.0,67254.0,0.074756]
[1729000422682,0.0004,67255.0,67254.0,0.785836]
[1729000422981,0.0004,67255.0,67254.0,0.0054]
[1729000423177,0.2604,67255.0,67254.0,0.0054]
[1729000423574,0.2614,67255.0,67254.0,0.079756]
[1729000423779,0.2614,67255.0,67254.0,0.0054]
[1729000424284,0.2604,67255.0,67254.0,0.0144]
[1729000424478,0.2604,67255.0,67254.0,0.0284]
[1729000424781,0.0004,67255.0,67254.0,0.102756]
[1729000424984,0.0004,67255.0,67254.0,0.088756]
[1729000425187,0.0004,67255.0,67254.0,0.102756]
[1729000425383,0.0004,67255.0,67254.0,0.362756]
[1729000425588,0.0008,67262.0,67254.0,1.408836]
[1729000425782,0.0008,67262.0,67261.0,1.055948]
[1729000425978,0.0008,67262.0,67261.0,0.796348]
[1729000426886,0.0008,67262.0,67261.0,0.0004]
[1729000427089,0.335147,67262.0,67261.0,0.0004]
[1729000427887,0.2608,67262.0,67261.0,0.0004]
[1729000428290,0.0008,67262.0,67261.0,0.0004]
[1729000428489,0.0008,67262.0,67261.0,0.442548]
[1729000428793,0.0008,67262.0,67261.0,0.455548]
[1729000429494,0.0008,67262.0,67261.0,0.48270219]
[1729000430080,0.2608,67262.0,67261.0,0.3812]
[1729000430279,0.2608,67262.0,67261.0,0.0204]
[1729000430280,0.335147,67262.0,67261.0,0.0204]
[1729000431193,0.335147,67262.0,67261.0,0.0214]
[1729000431386,0.335147,67262.0,67261.0,0.0284]
[1729000431387,0.0008,67262.0,67261.0,0.0284]
[1729000431787,0.2608,67262.0,67261.0,0.0284]
[1729000431988,0.2608,67262.0,67261.0,0.0144]
[1729000432195,0.2608,67262.0,67261.0,0.0284]
[1729000432390,0.2608,67262.0,67261.0,0.0144]
[1729000432587,0.2608,67262.0,67241.0,0.3612]
[1729000432588,1.4816,67262.0,67241.0,0.3612]
[1729000432788,0.074369,67242.0,67241.0,0.0004]
[1729000432987,0.074369,67242.0,67220.0,0.074392]
[1729000432988,0.074384,67229.0,67222.0,0.074391]
[1729000433195,0.2604,67223.0,67222.0,0.074391]
[1729000433499,0.2604,67223.0,67222.0,0.435191]
[1729000433500,0.0004,67223.0,67222.0,0.435191]
[1729000433795,0.0004,67223.0,67222.0,0.074391]
[1729000433993,0.0004,67223.0,67219.0,0.02688027]
[1729000433994,0.26,67223.0,67219.0,0.38768027]
[1729000434186,0.26,67223.0,67222.0,0.074391]
[1729000434789,0.26,67227.0,67219.0,0.38768027]
[1729000434992,0.26,67227.0,67226.0,0.074787]
[1729000435497,0.26,67234.0,67226.0,0.0004]
[1729000435689,0.00076,67241.0,67233.0,0.3608]
[1729000435896,0.26,67238.0,67234.0,0.3608]
[1729000436401,0.4462,67237.0,67234.0,0.3608]
[1729000436598,0.26076,67238.0,67234.0,0.3608]
[1729000436798,0.26,67238.0,67237.0,0.0004]
[1729000437096,0.70616,67238.0,67237.0,0.0004]
[1729000437501,0.44616,67238.0,67237.0,0.074774]
[1729000437700,0.0008,67242.0,67241.0,0.07437]
[1729000437999,0.0008,67242.0,67241.0,0.43557]
[1729000439098,0.0018,67242.0,67241.0,0.43657]
[1729000439401,0.0018,67242.0,67241.0,0.65888885]
[1729000439602,0.0018,67242.0,67241.0,0.66388885]
[1729000440893,0.0008,67247.0,67246.0,0.074365]
[1729000441099,0.0008,67247.0,67246.0,0.074765]
[1729000441304,0.0008,67247.0,67246.0,0.29831465]
[1729000442098,0.26,67253.0,67246.0,0.25131597]
[1729000442305,0.0004,67255.0,67246.0,0.10213032]
[1729000442306,0.26,67248.0,67246.0,0.10213032]
[1729000442491,0.26,67248.0,67246.0,0.04876632]
[1729000442697,0.520483,67247.0,67246.0,0.0214]
[1729000443101,1.120483,67247.0,67246.0,0.0214]
[1729000443299,0.074363,67247.0,67246.0,0.0214]
[1729000443494,1.120483,67247.0,67246.0,0.0214]
[1729000443805,0.520483,67247.0,67246.0,0.0214]
[1729000444107,0.26,67253.0,67246.0,0.0214]
[1729000444291,0.074359,67251.0,67250.0,0.0726273]
[1729000444598,0.26,67253.0,67252.0,0.074358]
[1729000444903,0.26,67253.0,67246.0,0.0114]
[1729000445097,0.334357,67253.0,67252.0,0.074358]
[1729000445290,0.26,67253.0,67252.0,0.074358]
[1729000445493,0.0004,67255.0,67254.0,0.074356]
[1729000445694,0.0004,67255.0,67254.0,0.074756]
[1729000445897,0.334755,67255.0,67254.0,0.074756]
[1729000446100,0.334755,67255.0,67254.0,0.0004]
[1729000446101,0.2604,67255.0,67254.0,0.0004]
[1729000446501,0.2604,67255.0,67254.0,0.074756]
[1729000446804,1.30648,67255.0,67254.0,0.0004]
[1729000447005,0.074357,67253.0,67252.0,0.01]
[1729000447199,0.074757,67253.0,67252.0,0.01]
[1729000447400,1.120837,67253.0,67252.0,0.01]
[1729000447599,1.04648,67253.0,67252.0,0.01]
[1729000447803,0.0004,67253.0,67252.0,0.083358]
[1729000448002,0.0004,67253.0,67252.0,0.074358]
[1729000448201,0.0004,67253.0,67247.0,0.3608]
[1729000448404,0.26,67249.0,67248.0,0.074362]
[1729000448599,0.26,67249.0,67247.0,0.3608]
[1729000448801,0.074362,67248.0,67247.0,0.3608]
[1729000449208,0.074762,67248.0,67247.0,0.3608]
[1729000449708,0.074762,67248.0,67246.0,0.0004]
[1729000449709,0.074363,67247.0,67246.0,0.0004]
[1729000450109,0.074369,67242.0,67239.0,0.075571]
[1729000450406,0.074369,67242.0,67237.0,0.02748421]
[1729000450407,0.695569,67242.0,67241.0,0.07477]
[1729000450704,0.695569,67242.0,67241.0,0.0004]
[1729000450904,0.3612,67242.0,67241.0,0.29710123]
[1729000451294,0.695569,67242.0,67241.0,0.0004]
[1729000451501,0.695569,67242.0,67241.0,0.07477]
[1729000451908,0.695569,67242.0,67241.0,0.0274]
[1729000453114,0.074373,67238.0,67237.0,1e-06]
[1729000453302,0.074393,67220.0,67207.0,0.3608]
[1729000453505,0.334393,67220.0,67212.0,0.074802]
[1729000453709,0.074793,67220.0,67212.0,0.0004]
[1729000454008,0.074793,67220.0,67213.0,0.074401]
[1729000454205,0.074793,67220.0,67214.0,0.074399]
[1729000454406,1.04668,67220.0,67212.0,0.0004]
[1729000454614,1.04668,67220.0,67202.0,0.02636023]
[1729000454615,0.26,67211.0,67202.0,0.02636023]
[1729000454906,0.074413,67202.0,67201.0,0.0004]
[1729000455113,0.074813,67202.0,67201.0,0.0004]
[1729000455307,0.435613,67202.0,67201.0,0.074814]
[1729000455608,0.435613,67202.0,67201.0,0.435614]
[1729000455609,0.0004,67202.0,67201.0,0.435614]
[1729000455911,0.0008,67213.0,67212.0,0.074402]
[1729000456109,0.075201,67213.0,67212.0,0.074802]
[1729000456309,0.075201,67213.0,67212.0,0.0004]
[1729000456517,1.04756,67213.0,67202.0,0.3608]
[1729000456716,0.0004,67203.0,67202.0,0.3608]
[1729000457008,0.0004,67203.0,67201.0,0.0014]
[1729000457201,0.520813,67202.0,67201.0,0.0014]
[1729000457399,0.535213,67202.0,67201.0,0.0014]
[1729000457714,0.535213,67202.0,67189.0,0.00179738]
[1729000457715,0.0004,67194.0,67182.0,0.0004]
[1729000457906,0.0004,67194.0,67180.0,0.02640844]
[1729000457907,0.26,67188.0,67180.0,0.02640844]
[1729000458105,0.0004,67194.0,67193.0,0.074423]
[1729000458311,0.0004,67194.0,67193.0,0.435223]
[1729000458506,0.0004,67194.0,67193.0,0.435623]
[1729000458813,0.0004,67194.0,67193.0,0.0004]
[1729000459112,0.0004,67194.0,67193.0,0.074823]
[1729000459320,0.0144,67194.0,67193.0,0.075823]
[1729000460799,0.0214,67194.0,67193.0,0.076823]
[1729000461414,0.0144,67194.0,67193.0,0.335823]
[1729000461712,0.0214,67194.0,67193.0,0.076823]
[1729000462020,0.0004,67194.0,67193.0,0.074823]
[1729000462216,0.007,67194.0,67193.0,0.29961722]
[1729000462514,0.0008,67202.0,67193.0,0.29961722]
[1729000462515,0.0008,67202.0,67201.0,0.074414]
[1729000462701,0.0008,67202.0,67201.0,0.435614]
[1729000462904,0.0012,67213.0,67212.0,0.074402]
[1729000463108,0.0012,67213.0,67212.0,0.435602]
[1729000464608,0.0152,67213.0,67212.0,0.436602]
[1729000464812,0.089601,67213.0,67212.0,0.3622]
[1729000465201,0.089601,67213.0,67212.0,0.0014]
[1729000465809,0.076601,67213.0,67212.0,0.0134]
[1729000466117,0.676601,67213.0,67212.0,0.0134]
[1729000466409,0.0022,67213.0,67212.0,0.0134]
[1729000466805,0.676601,67213.0,67212.0,0.0134]
[1729000467015,1.122961,67213.0,67212.0,0.0134]
[1729000467314,1.123961,67213.0,67212.0,0.0184]
[1729000468017,1.123961,67213.0,67201.0,0.0004]
[1729000468311,0.334813,67202.0,67201.0,0.0004]
[1729000468717,1.381213,67202.0,67201.0,0.0004]
[1729000469315,0.934813,67202.0,67201.0,0.0004]
[1729000469526,0.0004,67202.0,67201.0,0.435614]
[1729000469712,0.0074,67202.0,67201.0,0.65862135]
[1729000469919,0.074422,67194.0,67193.0,0.0004]
[1729000470119,1.3138,67202.0,67197.0,0.074419]
[1729000470120,0.074416,67200.0,67197.0,0.074419]
[1729000470317,0.074418,67198.0,67197.0,0.074419]
[1729000470621,0.334418,67198.0,67197.0,0.074419]
[1729000470918,0.334418,67198.0,67181.0,0.5921]
[1729000470919,0.8808,67198.0,67181.0,0.5921]
[1729000471113,0.26,67184.0,67183.0,0.074434]
[1729000471520,0.26,67188.0,67187.0,0.07443]
[1729000471719,0.028,67194.0,67192.0,0.074424]
[1729000471720,0.26,67193.0,67192.0,0.074424]
[1729000471916,0.26,67193.0,67192.0,0.074824]
[1729000473010,0.07665262,67198.0,67192.0,0.074824]
[1729000473011,0.26223362,67198.0,67192.0,0.074824]
[1729000473213,0.00223362,67198.0,67197.0,0.074419]
[1729000473418,0.0004,67202.0,67201.0,0.074414]
[1729000473610,0.0004,67202.0,67201.0,0.435614]
[1729000473818,0.074397,67217.0,67212.0,0.074402]
[1729000474124,0.435176,67236.0,67212.0,1.3899152]
[1729000474125,0.3608,67236.0,67212.0,1.3899152]
[1729000474322,0.26,67233.0,67232.0,0.07438]
[1729000474619,0.26,67233.0,67232.0,0.43558]
[1729000475214,0.26,67233.0,67232.0,0.0004]
[1729000475416,0.26,67233.0,67227.0,0.3608]
[1729000475615,0.8812,67228.0,67215.0,0.00465011]
[1729000475925,0.0004,67216.0,67215.0,0.07904911]
[1729000476124,0.0004,67216.0,67215.0,0.00465011]
[1729000476314,0.074798,67216.0,67215.0,0.00465011]
[1729000476516,0.0004,67216.0,67215.0,0.07904911]
[1729000476721,0.0004,67216.0,67215.0,0.074399]
[1729000477042,0.0004,67216.0,67213.0,0.074401]
[1729000477221,0.0004,67216.0,67212.0,0.0004]
[1729000477222,0.334401,67214.0,67212.0,0.0004]
[1729000477418,0.3612,67213.0,67212.0,0.074802]
[1729000477829,0.3612,67213.0,67212.0,0.0004]
[1729000478123,0.435601,67213.0,67212.0,0.0004]
[1729000478516,0.435601,67213.0,67212.0,0.0014]
[1729000478726,1.495961,67213.0,67212.0,0.0014]
[1729000479020,1.509961,67213.0,67212.0,0.0014]
[1729000479227,0.3892,67213.0,67212.0,0.0014]
[1729000479522,0.3892,67213.0,67212.0,0.075802]
[1729000480321,0.0004,67216.0,67212.0,0.075802]
[1729000480528,0.3608,67225.0,67215.0,0.6208]
[1729000480715,0.3608,67225.0,67224.0,0.074389]
[1729000480921,0.3608,67225.0,67224.0,0.074789]
[1729000481325,0.3608,67225.0,67224.0,0.0004]
[1729000481523,0.435188,67225.0,67224.0,0.0004]
[1729000482321,0.436188,67225.0,67224.0,0.0014]
[1729000482521,0.3618,67225.0,67224.0,0.075789]
[1729000483431,0.3618,67225.0,67224.0,0.089789]
[1729000484127,0.001,67225.0,67224.0,0.102789]
[1729000484628,0.435187,67226.0,67225.0,0.074388]
[1729000484929,0.435187,67226.0,67225.0,0.074788]
[1729000484930,0.6208,67226.0,67225.0,0.074788]
[1729000485822,0.0004,67228.0,67225.0,0.0004]
[1729000486139,0.3608,67240.0,67227.0,0.3612]
[1729000486429,0.074773,67238.0,67237.0,0.074774]
[1729000486637,0.074773,67238.0,67237.0,0.0004]
[1729000487128,0.435573,67238.0,67237.0,0.0004]
[1729000487336,1.481733,67238.0,67237.0,0.0004]
[1729000487933,1.481733,67238.0,67227.0,0.0004]
[1729000487934,0.074384,67228.0,67227.0,0.0004]
[1729000488125,0.695584,67228.0,67227.0,0.0004]
[1729000488330,0.695584,67228.0,67227.0,0.074786]
[1729000488331,0.6212,67228.0,67227.0,0.074786]
[1729000488531,0.695584,67228.0,67227.0,0.074786]
[1729000489037,0.695584,67228.0,67227.0,0.0004]
[1729000490038,0.3612,67228.0,67227.0,0.074786]
[1729000490423,0.0004,67228.0,67227.0,0.074786]
[1729000491132,0.0054,67228.0,67227.0,0.076786]
[1729000491730,0.0054,67228.0,67227.0,1.483826]
[1729000492229,0.0024,67228.0,67227.0,0.438586]
[1729000492634,0.0004,67238.0,67230.0,0.074381]
[1729000492936,0.0004,67238.0,67237.0,0.074774]
[1729000493144,0.0004,67238.0,67237.0,0.334774]
[1729000493441,0.0008,67242.0,67237.0,1.380934]
[1729000493638,0.26,67258.0,67237.0,1.380934]
[1729000493639,0.26,67259.0,67252.0,0.074358]
[1729000493833,0.3608,67260.0,67252.0,0.0004]
[1729000493834,0.2608,67255.0,67252.0,0.0004]
[1729000494030,0.074356,67254.0,67252.0,0.074758]
[1729000494231,0.074757,67253.0,67252.0,0.074758]
[1729000494527,0.3612,67253.0,67252.0,0.074758]
[1729000494837,0.6212,67253.0,67252.0,0.074758]
[1729000495040,0.6212,67253.0,67252.0,0.088758]
[1729000495335,0.2604,67253.0,67252.0,0.088758]
[1729000495541,0.2634,67253.0,67252.0,0.075758]
[1729000495729,0.0054,67253.0,67252.0,0.076758]
[1729000497041,0.0008,67255.0,67252.0,1.122838]
[1729000497336,0.3608,67266.0,67261.0,0.074348]
[1729000497536,0.26,67270.0,67261.0,0.074348]
[1729000497835,0.26,67270.0,67261.0,0.435548]
[1729000498040,0.6208,67270.0,67261.0,0.435548]
[1729000498540,0.074332,67276.0,67261.0,0.435548]
[1729000498541,0.00325297,67283.0,67282.0,0.074325]
[1729000498731,0.00325297,67283.0,67282.0,0.934325]
[1729000499042,0.3608,67294.0,67293.0,0.074313]
[1729000499239,0.26,67307.0,67298.0,0.074306]
[1729000499437,0.26,67307.0,67298.0,0.074307]
[1729000499741,0.3608,67321.0,67299.0,0.92942216]
[1729000499934,0.074278,67325.0,67320.0,0.0004]
[1729000499935,0.334278,67325.0,67320.0,0.0004]
[1729000500237,0.3608,67327.0,67299.0,0.0004]
[1729000500238,0.6208,67321.0,67299.0,0.0004]
[1729000500428,0.3608,67308.0,67302.0,0.26]
[1729000500634,0.0004,67321.0,67307.0,0.3608]
[1729000500837,0.3612,67321.0,67320.0,0.0004]
[1729000501034,0.0004,67321.0,67320.0,0.6004]
[1729000501235,0.0004,67321.0,67320.0,0.0004]
[1729000501837,0.0004,67321.0,67320.0,1.04604]
[1729000502145,0.0004,67321.0,67320.0,1.04704]
[1729000502536,0.015,67333.0,67320.0,1.52967899]
[1729000502737,0.435053,67348.0,67337.0,0.074264]
[1729000502943,0.3608,67351.0,67347.0,0.2604]
[1729000503239,0.4838,67367.0,67347.0,0.2604]
[1729000503240,0.074227,67371.0,67350.0,0.3612]